fUST/lending_fUST_20251004
["ID","MTS","AMOUNT","RATE_DAILY","PERIOD"]
[389104974,1759578954320,-355.34991856,0.00019213,2]
[389104975,1759578954328,-144.65008144,0.00019487,2]
[389104976,1759578954342,-147.48870312,0.00019487,2]
[389104977,1759578954356,-207.86121544,0.00019487,2]
[389104978,1759578954365,-255.38224734,0.00019761,2]
[389104979,1759578954380,-120.40775266,0.00019761,2]
[389104980,1759578954389,-450.12224734,0.00020035,2]
[389104981,1759578954403,-250.93208446,0.00020035,2]
[389104982,1759578954412,-500.0,0.00020035,2]
[389104983,1759578954421,-493.19791554,0.00020035,2]
[389104984,1759578954447,-418.52187975,0.00019213,2]
[389104985,1759578954456,-6.80208446,0.00020035,2]
[389104986,1759578954466,-88.45603579,0.00020035,2]
[389104987,1759578954480,-523.09396421,0.00020035,2]
[389104988,1759578954496,-185.92603579,0.00020035,2]
[389104989,1759578954514,-314.07396421,0.00020035,2]
[389104990,1759578954524,-185.92603579,0.00020035,2]
[389104991,1759578954538,-680.89396421,0.00020035,2]
[389104992,1759578954547,-21.44603579,0.00020035,2]
[389104993,1759578954591,-341.79,0.00019761,2]
[389104994,1759578954619,-602.86396421,0.00020035,2]
[389104995,1759578954647,-494.25,0.00020035,2]
[389104996,1759578954680,-500.0,0.00020035,2]
[389104997,1759578954711,-772.98,0.00020035,2]
[389104998,1759578954740,-597.35,0.00020035,2]
[389104999,1759578955130,500.0,0.00019213,2]
[389105000,1759578955421,500.0,0.00019213,2]
[389105001,1759578955447,500.0,0.00019213,2]
[389105002,1759578955474,500.0,0.00019487,2]
[389105003,1759578955505,500.0,0.00019213,2]
[389105004,1759578955649,500.0,0.00019487,2]
[389105005,1759578955676,381.54207158,0.00019213,2]
[389105006,1759578955696,118.45792842,0.00019213,2]
[389105007,1759578955778,500.0,0.00019213,2]
[389105008,1759578955857,500.0,0.00019761,2]
[389105009,1759578955886,500.0,0.00019761,2]
[389105010,1759578955932,500.0,0.00019213,2]
[389105011,1759578956110,500.0,0.00020035,2]
[389105012,1759578956158,500.0,0.00019486,2]
[389105013,1759578956396,500.0,0.00020035,2]
[389105014,1759578956421,500.0,0.00019486,2]
[389105015,1759578956738,500.0,0.00019486,2]
[389105016,1759578956990,500.0,0.00019487,2]
[389105017,1759578957224,500.0,0.00019487,2]
[389105018,1759578957498,500.0,0.00019487,2]
[389105019,1759578957818,500.0,0.00019487,2]
[389105020,1759578958053,500.0,0.00019487,2]
[389105021,1759578958085,-500.0,0.00020309,2]
[389105022,1759578958112,-553.49,0.00020309,2]
[389105023,1759578958139,-863.57,0.00020309,2]
[389105024,1759578958166,-951.26,0.00020309,2]
[389105025,1759578958193,-500.0,0.00020309,2]
[389105026,1759578958218,-500.0,0.00020309,2]
[389105027,1759578958245,-560.58,0.00020309,2]
[389105028,1759578958271,-500.0,0.00020309,2]
[389105029,1759578958505,-500.0,0.00020309,2]
[389105030,1759578958537,-2204.63,0.00020309,2]
[389105031,1759578958564,-500.0,0.00020309,2]
[389105032,1759578958591,-788.63,0.00020309,2]
[389105033,1759578958617,-500.0,0.00020309,2]
[389105034,1759578958644,-496.55,0.00020309,2]
[389105035,1759578958698,-20.39,0.00020309,2]
[389105036,1759578958725,-1650.69,0.00020309,2]
[389105037,1759578958751,-500.0,0.00020309,2]
[389105038,1759578958778,-500.0,0.00020309,2]
[389105039,1759578958943,-695.96,0.00020309,2]
[389105040,1759578958972,-964.04,0.00020309,2]
[389105041,1759578959001,-593.12,0.00020309,2]
[389105042,1759578959186,500.0,0.00019487,2]
[389105043,1759578959218,-991.97,0.00020309,2]
[389105044,1759578959246,-500.0,0.00020309,2]
[389105045,1759578959271,-500.0,0.00020309,2]
[389105046,1759578959300,-500.0,0.00020309,2]
[389105047,1759578959327,-500.0,0.00020309,2]
[389105048,1759578959354,-639.03,0.00020309,2]
[389105049,1759578959381,-500.0,0.00020309,2]
[389105050,1759578959410,-690.24,0.00020309,2]
[389105051,1759578959605,-704.65,0.00020309,2]
[389105052,1759578959632,-500.0,0.00020309,2]
[389105053,1759578959659,-2859.25,0.00020309,2]
[389105054,1759578959715,500.0,0.00019213,2]
[389105055,1759578959772,-1872.21,0.00020309,2]
[389105056,1759578959800,-1023.32,0.00020309,2]
[389105057,1759578959826,-591.31,0.00020309,2]
[389105058,1759578959854,-1151.94,0.00020309,2]
[389105059,1759578959881,500.0,0.00019487,2]
[389105060,1759578959975,500.0,0.00019487,2]
[389105061,1759578962057,-500.0,0.00019213,2]
[389105062,1759578962084,-500.0,0.00019213,2]
[389105063,1759578962111,-500.0,0.00019213,2]
[389105064,1759578962139,-500.0,0.00019487,2]
[389105065,1759578962166,-500.0,0.00019487,2]
[389105066,1759578962194,-500.0,0.00019487,2]
[389105067,1759578962226,-500.0,0.00019487,2]
[389105068,1759578962254,-500.0,0.00019488,2]
[389105069,1759578962282,-500.0,0.00019662,2]
[389105070,1759578962308,-500.0,0.00019662,2]
[389105071,1759578962427,-500.0,0.00019662,2]
[389105072,1759578962454,-500.0,0.00019662,2]
[389105073,1759578962480,-500.0,0.00019761,2]
[389105074,1759578962510,-500.0,0.00020035,2]
[389105075,1759578962537,-722.45,0.00020309,2]
[389105076,1759578962564,-500.0,0.00020309,2]
[389105077,1759578962591,-1747.16,0.00020309,2]
[389105078,1759578962992,-436.94460596,0.00019662,2]
[389105079,1759578963020,-500.0,0.00019761,2]
[389105080,1759578963050,-60.79,0.00020309,2]
[389105081,1759578963080,-2909.69,0.00020309,2]
[389105082,1759578963107,-635.85,0.00020309,2]
[389105083,1759578963133,-413.46078808,0.00020309,2]
[389105084,1759578963207,-86.53921192,0.00020309,2]
[389105085,1759578963233,-1333.57,0.00020309,2]
[389105086,1759578963262,-272.30065766,0.00020309,2]
[389105087,1759578963419,-2997.67,0.00020309,2]
[389105088,1759578963513,-4004.67,0.00020309,2]
[389105089,1759578964045,-500.0,0.00020035,2]
[389105090,1759578964055,-300.0,0.00020308,2]
[389105091,1759578964064,-785.45407872,0.00020309,2]
[389105092,1759578964087,-1990.67,0.00020309,2]
[389105093,1759578966066,-300.0,0.000192,2]
[389105094,1759578966093,-500.0,0.00019213,2]
[389105095,1759578966122,-830.73,0.00019213,2]
[389105096,1759578966149,-966.94,0.00019213,2]
[389105097,1759578966175,-500.0,0.00019213,2]
[389105098,1759578966201,-830.73,0.00019487,2]
[389105099,1759578966227,-966.94,0.00019487,2]
[389105100,1759578966309,-500.0,0.00019487,2]
[389105101,1759578966335,-830.73,0.00019761,2]
[389105102,1759578966362,-966.94,0.00019761,2]
[389105103,1759578966389,-500.0,0.00019761,2]
[389105104,1759578966417,-830.73,0.00020035,2]
[389105105,1759578966443,-966.94,0.00020035,2]
[389105106,1759578966472,-236.82407872,0.00020309,2]
[389105107,1759578966643,-500.0,0.00020035,2]
[389105108,1759578966670,-335.68184256,0.00020309,2]
[389105109,1759578966697,-2768.61,0.00020309,2]
[389105110,1759578966871,-500.0,0.00020309,2]
[389105111,1759578966898,-555.03,0.00020309,2]
[389105112,1759578966924,-181.36631488,0.00020309,2]
[389105113,1759578967103,-318.63368512,0.00020309,2]
[389105114,1759578967131,-891.25,0.00020309,2]
[389105115,1759578967159,-892.31,0.00020309,2]
[389105116,1759578967185,-500.0,0.00020309,2]
[389105117,1759578967211,-500.0,0.00020309,2]
[389105118,1759578967239,-500.0,0.00020309,2]
[389105119,1759578967266,-500.0,0.00020309,2]
[389105120,1759578967292,-500.0,0.00020309,2]
[389105121,1759578967319,-295.62262976,0.00020309,2]
[389105122,1759578967436,-204.37737024,0.00020309,2]
[389105123,1759578967462,-761.97,0.00020309,2]
[389105124,1759578967488,-605.9,0.00020309,2]
[389105125,1759578967514,-500.0,0.00020309,2]
[389105126,1759578967544,-500.0,0.00020309,2]
[389105127,1759578967572,-2215.35,0.00020309,2]
[389105128,1759578967733,-500.0,0.00020309,2]
[389105129,1759578967760,-1753.03,0.00020309,2]
[389105130,1759578967787,-500.0,0.00020309,2]
[389105131,1759578967814,-565.87,0.00020309,2]
[389105132,1759578968569,-426.96815744,0.00019213,2]
[389105133,1759578968583,-73.03184256,0.00019213,2]
[389105134,1759578968592,-426.96815744,0.00019487,2]
[389105135,1759578968607,-73.03184256,0.00019487,2]
[389105136,1759578968616,-492.83815744,0.00020309,2]
[389105137,1759578968631,-3362.21,0.00020309,2]
[389105138,1759578968669,-228.78184256,0.00020309,2]
[389105139,1759578968697,-500.0,0.00020309,2]
[389105140,1759578968726,-581.13,0.00020309,2]
[389105141,1759578968754,-1095.41,0.00020309,2]
[389105142,1759578968782,-500.0,0.00020309,2]
[389105143,1759578968810,-858.34,0.00020309,2]
[389105144,1759578968838,-527.1,0.00020309,2]
[389105145,1759578968867,-12.47631488,0.00020309,2]
[389105146,1759578969220,-500.0,0.00019178,2]
[389105147,1759578969230,-500.0,0.00019213,2]
[389105148,1759578969240,-393.53368512,0.00019487,2]
[389105149,1759578972116,-500.0,0.00019213,2]
[389105150,1759578972144,-500.0,0.00019213,2]
[389105151,1759578972174,-500.0,0.00019213,2]
[389105152,1759578972202,-500.0,0.00019213,2]
[389105153,1759578972230,-500.0,0.00019486,2]
[389105154,1759578972261,-106.46631488,0.00019487,2]
[389105155,1759578972432,-500.0,0.00019761,2]
[389105156,1759578972460,-500.0,0.00020035,2]
[389105157,1759578972489,-1393.53368512,0.00020309,2]
[389105158,1759578972594,-747.14,0.00020309,2]
[389105159,1759578972625,-730.05,0.00020309,2]
[389105160,1759578972658,-500.0,0.00020309,2]
[389105161,1759578972686,-586.98,0.00020309,2]
[389105162,1759578972713,-1314.39,0.00020309,2]
[389105163,1759578972741,-1107.61,0.00020309,2]
[389105164,1759578972842,-500.0,0.00019178,2]
[389105165,1759578972872,-500.0,0.00019486,2]
[389105166,1759578972900,-500.0,0.00020309,2]
[389105167,1759578972931,-504.74,0.00020309,2]
[389105168,1759578972957,-500.0,0.00020309,2]
[389105169,1759578972985,-570.53,0.00020309,2]
[389105170,1759578973015,-1244.13,0.00020309,2]
[389105171,1759578973043,-513.78,0.00020309,2]
[389105172,1759578973249,-709.02,0.00020309,2]
[389105173,1759578973278,-500.0,0.00020309,2]
[389105174,1759578973309,-702.34,0.00020309,2]
[389105175,1759578973338,-576.35,0.00020309,2]
[389105176,1759578973365,-500.0,0.00020309,2]
[389105177,1759578973396,-611.55,0.00020309,2]
[389105178,1759578973424,-500.0,0.00020309,2]
[389105179,1759578973452,-866.82,0.00020309,2]
[389105180,1759578973586,-613.02,0.00019213,2]
[389105181,1759578973616,-500.0,0.00019452,2]
[389105182,1759578973643,-624.31,0.00020309,2]
[389105183,1759578973672,-500.0,0.00020309,2]
[389105184,1759578973699,-772.98,0.00020309,2]
[389105185,1759578973726,-597.35,0.00020309,2]
[389105186,1759578973754,-500.0,0.00020309,2]
[389105187,1759578973783,-567.1,0.00020309,2]
[389105188,1759578973811,-8.61,0.00020309,2]
[389105189,1759578973976,-633.27,0.00020309,2]
[389105190,1759578974003,-500.0,0.00020309,2]
[389105191,1759578974030,-830.73,0.00020309,2]
[389105192,1759578974056,-966.94,0.00020309,2]
[389105193,1759578974082,-500.0,0.00020309,2]
[389105194,1759578974108,-500.0,0.00020309,2]
[389105195,1759578974134,-518.66547141,0.00020483,2]
[389105196,1759578975121,-90.12452859,0.00019213,2]
[389105197,1759578975136,-409.87547141,0.00019213,2]
[389105198,1759578975146,-90.12452859,0.00019486,2]
[389105199,1759578975166,-409.87547141,0.00019486,2]
[389105200,1759578975175,-108.79,0.00019487,2]
[389105201,1759578975189,-504.23,0.00019487,2]
[389105202,1759578975198,-500.0,0.00019487,2]
[389105203,1759578975208,-96.56905718,0.00019487,2]
[389105204,1759578975552,392.88,0.00026,60]
[389105205,1759578994414,-5000.0,0.00019008,2]
[389105206,1759578994449,-0.01,0.00019178,2]
[389105207,1759578996315,-499.99,0.00019178,2]
[389105208,1759578996344,-300.0,0.000192,2]
[389105209,1759578996377,-500.0,0.00019213,2]
[389105210,1759578996406,-500.0,0.00019213,2]
[389105211,1759578996434,-500.0,0.00019213,2]
[389105212,1759578996463,-500.0,0.00019213,2]
[389105213,1759578996494,-500.0,0.00019213,2]
[389105214,1759578996524,-500.0,0.00019213,2]
[389105215,1759578996552,-600.75,0.00019213,2]
[389105216,1759578996584,-451.64,0.00019213,2]
[389105217,1759578996759,-295.25,0.00019213,2]
[389105218,1759578998350,-500.0,0.00019213,2]
[389105219,1759578998382,-500.0,0.00019213,2]
[389105220,1759578998415,-500.0,0.00019213,2]
[389105221,1759578998448,-1182.43,0.00019213,2]
[389105222,1759578998481,-873.23,0.00019213,2]
[389105223,1759578998516,-391.27,0.00019213,2]
[389105224,1759578998628,-2106.15,0.00019213,2]
[389105225,1759579000484,-500.0,0.00019178,2]
[389105226,1759579000516,-484.46115289,0.00019213,2]
[389105227,1759579000548,-4013.59,0.00019213,2]
[389105228,1759579000617,-3.90769422,0.00019213,2]
[389105233,1759579164722,5000.0,0.00018033,2]
[389105234,1759579186729,5000.0,0.00018033,2]
[389105235,1759579195918,5000.0,0.00018033,2]
[389105236,1759579211294,5000.0,0.00018033,2]
[389105237,1759579219930,3852.01,0.00018033,2]
[389105238,1759579235025,5000.0,0.00018033,2]
[389105239,1759579263851,300.0,0.00018,2]
[389105242,1759579278967,5000.0,0.00018033,2]
[389105243,1759579301925,5000.0,0.00018033,2]
[389105244,1759579324781,5000.0,0.00018033,2]
[389105245,1759579325460,300.0,0.00018,2]
[389105246,1759579340880,5000.0,0.00018033,2]
[389105247,1759579349432,5000.0,0.00018033,2]
[389105248,1759579364840,5000.0,0.00018033,2]
[389105249,1759579372713,5000.0,0.00018033,2]
[389105250,1759579388133,5000.0,0.00018033,2]
[389105251,1759579410771,5000.0,0.00018033,2]
[389105253,1759579433587,5000.0,0.00018033,2]
[389105254,1759579456323,5000.0,0.00018033,2]
[389105256,1759579479193,5000.0,0.00018033,2]
[389105257,1759579501800,5000.0,0.00018033,2]
[389105265,1759579524585,5000.0,0.00018033,2]
[389105267,1759579530321,230.319555,0.00016438,2]
[389105272,1759579548275,5000.0,0.00018033,2]
[389105273,1759579571564,5000.0,0.00018033,2]
[389105275,1759579594141,5000.0,0.00018033,2]
[389105276,1759579616575,5000.0,0.00018033,2]
[389105280,1759579639269,5000.0,0.00018033,2]
[389105281,1759579661561,5000.0,0.00018033,2]
[389105283,1759579679938,198.63,0.00015984,2]
[389105284,1759579685165,5000.0,0.00018033,2]
[389105285,1759579707766,4954.78198614,0.00018033,2]
[389105293,1759579816952,5000.0,0.00018033,2]
[389105294,1759579817809,3188.0,0.00018,2]
[389105326,1759579836006,-610.0,0.00018127,2]
[389105327,1759579836018,-590.0,0.00018127,2]
[389105328,1759579836028,-285.66708873,0.00018127,2]
[389105395,1759579838357,-914.33291127,0.00018127,2]
[389105396,1759579838367,-7118.2920969,0.00018128,2]
[389105397,1759579838376,-300.0,0.00018194,2]
[389105398,1759579838386,-300.0,0.00018194,2]
[389105399,1759579838395,-300.0,0.00018194,2]
[389105400,1759579838404,-300.0,0.00018194,2]
[389105401,1759579838414,-300.0,0.00018194,2]
[389105402,1759579838423,-1000.0,0.00018196,2]
[389105403,1759579838433,-165.04515382,0.00018496,2]
[389105404,1759579838442,-210.3415931,0.00018898,2]
[389105405,1759579838452,-3229.62220308,0.00019078,2]
[389105406,1759579838461,-1060.01140042,0.00019078,2]
[389105407,1759579838470,-1027.14338884,0.00019078,2]
[389105408,1759579838480,-165.04515382,0.00019113,2]
[389105409,1759579838490,-1060.01140041,0.00019155,2]
[389105410,1759579838499,-500.0,0.00019173,2]
[389105411,1759579838508,-500.0,0.00019173,2]
[389105412,1759579838518,-500.0,0.00019173,2]
[389105413,1759579838528,-500.0,0.00019173,2]
[389105414,1759579838538,-500.0,0.00019173,2]
[389105415,1759579838547,-500.0,0.00019173,2]
[389105416,1759579838556,-500.0,0.00019173,2]
[389105417,1759579838566,-500.0,0.00019173,2]
[389105418,1759579838575,-500.0,0.00019173,2]
[389105419,1759579838584,-500.0,0.00019173,2]
[389105420,1759579838594,-500.0,0.00019173,2]
[389105421,1759579838603,-500.0,0.00019173,2]
[389105422,1759579838613,-452.65099278,0.00019173,2]
[389105423,1759579838622,-500.0,0.00019173,2]
[389105424,1759579838631,-501.2192186,0.00019173,2]
[389105425,1759579838641,-500.0,0.00019173,2]
[389105426,1759579838650,-271.90358409,0.00019173,2]
[389105427,1759579838659,-500.0,0.00019173,2]
[389105428,1759579838669,-500.0,0.00019173,2]
[389105429,1759579838678,-500.0,0.00019173,2]
[389105430,1759579838688,-500.0,0.00019173,2]
[389105431,1759579838698,-500.01721038,0.00019173,2]
[389105432,1759579838707,-500.0,0.00019173,2]
[389105433,1759579838717,-501.47726799,0.00019173,2]
[389105434,1759579838726,-500.36479836,0.00019173,2]
[389105435,1759579838736,-500.0,0.00019173,2]
[389105436,1759579838745,-500.0,0.00019173,2]
[389105437,1759579838754,-182.91780199,0.00019175,2]
[389105438,1759579838763,-500.0,0.00019175,2]
[389105439,1759579838772,-299.19212515,0.00019175,2]
[389105440,1759579838781,-500.0,0.00019175,2]
[389105441,1759579838790,-500.0,0.00019175,2]
[389105442,1759579838800,-500.0,0.00019175,2]
[389105443,1759579838809,-500.0,0.00019175,2]
[389105444,1759579838818,-325.28204619,0.00019175,2]
[389105445,1759579838827,-400986.745683,0.00019176,2]
[389105446,1759579838837,-366.12182424,0.00019178,2]
[389105447,1759579838846,-500.0,0.00019178,2]
[389105448,1759579838855,-739.19,0.00019178,2]
[389105449,1759579838865,-500.0,0.00019178,2]
[389105450,1759579838874,-500.0,0.00019178,2]
[389105451,1759579838883,-500.0,0.00019178,2]
[389105452,1759579838892,-561.16,0.00019178,2]
[389105453,1759579838905,-500.0,0.00019178,2]
[389105454,1759579838914,-500.0,0.00019178,2]
[389105455,1759579838923,-465.01439612,0.00019178,2]
[389105456,1759579838932,-426.79960627,0.00019178,2]
[389105457,1759579838941,-500.0,0.00019178,2]
[389105458,1759579838949,-500.0,0.00019178,2]
[389105459,1759579838958,-500.0,0.00019178,2]
[389105460,1759579838968,-500.0,0.00019178,2]
[389105461,1759579838976,-500.0,0.00019178,2]
[389105462,1759579838985,-500.0,0.00019178,2]
[389105463,1759579838995,-500.0,0.00019178,2]
[389105464,1759579839004,-500.0,0.00019178,2]
[389105465,1759579839013,-501.35,0.00019178,2]
[389105466,1759579839022,-500.0,0.00019178,2]
[389105467,1759579839032,-1075.8,0.00019178,2]
[389105468,1759579839041,-500.0,0.00019178,2]
[389105469,1759579839050,-588.62,0.00019178,2]
[389105470,1759579839059,-1020.61,0.00019178,2]
[389105471,1759579839068,-727.07,0.00019178,2]
[389105472,1759579839077,-500.0,0.00019178,2]
[389105473,1759579839086,-1133.16,0.00019178,2]
[389105474,1759579839095,-662.6,0.00019178,2]
[389105475,1759579839104,-519.39,0.00019178,2]
[389105476,1759579839114,-500.0,0.00019178,2]
[389105477,1759579839123,-900.87,0.00019178,2]
[389105478,1759579839132,-500.0,0.00019178,2]
[389105479,1759579839141,-2021.7,0.00019178,2]
[389105480,1759579839151,-500.0,0.00019178,2]
[389105481,1759579839160,-500.0,0.00019178,2]
[389105482,1759579839169,-500.0,0.00019178,2]
[389105483,1759579839182,-500.0,0.00019178,2]
[389105484,1759579839191,-500.0,0.00019178,2]
[389105485,1759579839200,-500.0,0.00019178,2]
[389105486,1759579839209,-639.7,0.00019178,2]
[389105487,1759579839218,-483.59085998,0.00019178,2]
[389105488,1759579839227,-500.0,0.00019178,2]
[389105489,1759579839236,-625.55098373,0.00019178,2]
[389105490,1759579839245,-500.0,0.00019178,2]
[389105491,1759579839254,-821.9,0.00019178,2]
[389105492,1759579839263,-500.0,0.00019178,2]
[389105493,1759579839273,-481.85606614,0.00019178,2]
[389105494,1759579839282,-500.0,0.00019178,2]
[389105495,1759579839291,-500.0,0.00019178,2]
[389105496,1759579839299,-1142.01,0.00019178,2]
[389105497,1759579839309,-701.31,0.00019178,2]
[389105498,1759579839318,-880.41,0.00019178,2]
[389105499,1759579839328,-500.0,0.00019178,2]
[389105500,1759579839337,-500.0,0.00019178,2]
[389105501,1759579839347,-1556.71,0.00019178,2]
[389105502,1759579839356,-500.0,0.00019178,2]
[389105503,1759579839365,-500.0,0.00019178,2]
[389105504,1759579839374,-500.0,0.00019178,2]
[389105505,1759579839383,-500.0,0.00019178,2]
[389105506,1759579839392,-500.0,0.00019178,2]
[389105507,1759579839401,-884.26,0.00019178,2]
[389105508,1759579839411,-2430.04,0.00019178,2]
[389105509,1759579839420,-500.0,0.00019178,2]
[389105510,1759579839429,-500.0,0.00019178,2]
[389105511,1759579839439,-2825.04,0.00019178,2]
[389105512,1759579839448,-484.08523051,0.00019178,2]
[389105513,1759579839457,-500.0,0.00019178,2]
[389105514,1759579839466,-629.0,0.00019178,2]
[389105515,1759579839475,-777.61,0.00019178,2]
[389105516,1759579839484,-500.0,0.00019178,2]
[389105517,1759579839493,-1709.15,0.00019178,2]
[389105518,1759579839502,-500.0,0.00019178,2]
[389105519,1759579839511,-500.0,0.00019178,2]
[389105520,1759579839520,-500.0,0.00019178,2]
[389105521,1759579839530,-500.0,0.00019178,2]
[389105522,1759579839539,-500.0,0.00019178,2]
[389105523,1759579839548,-5543.52,0.00019178,2]
[389105524,1759579839557,-5000.0,0.00019178,2]
[389105525,1759579839566,-151.0,0.00019201,2]
[389105526,1759579839575,-151.0,0.00019201,2]
[389105527,1759579839584,-151.0,0.00019201,2]
[389105528,1759579839593,-151.0,0.00019201,2]
[389105529,1759579839603,-151.0,0.00019201,2]
[389105530,1759579839612,-151.0,0.00019201,2]
[389105531,1759579839622,-151.0,0.00019201,2]
[389105532,1759579839631,-151.0,0.00019201,2]
[389105533,1759579839641,-151.0,0.00019201,2]
[389105534,1759579839650,-151.0,0.00019201,2]
[389105535,1759579839660,-151.0,0.00019201,2]
[389105536,1759579839670,-151.0,0.00019201,2]
[389105537,1759579839679,-151.0,0.00019201,2]
[389105540,1759579839688,-151.0,0.00019201,2]
[389105541,1759579839876,-151.0,0.00019201,2]
[389105542,1759579839886,-151.0,0.00019201,2]
[389105544,1759579839896,-151.0,0.00019201,2]
[389105546,1759579839906,-151.0,0.00019201,2]
[389105547,1759579839916,-151.0,0.00019201,2]
[389105548,1759579839926,-151.0,0.00019201,2]
[389105549,1759579839936,-500.0,0.00019213,2]
[389105550,1759579839946,-209.81979494,0.00019213,2]
[389105551,1759579839955,-500.0,0.00019213,2]
[389105552,1759579839965,-500.0,0.00019213,2]
[389105553,1759579839975,-500.0,0.00019213,2]
[389105554,1759579839985,-500.0,0.00019213,2]
[389105555,1759579839994,-500.0,0.00019213,2]
[389105556,1759579840004,-500.0,0.00019213,2]
[389105557,1759579840013,-500.0,0.00019213,2]
[389105558,1759579840023,-500.0,0.00019213,2]
[389105559,1759579840032,-534.1969581,0.00019213,2]
[389105560,1759579840041,-500.0,0.00019213,2]
[389105562,1759579840051,-207.69572856,0.00019213,2]
[389105564,1759579840060,-1027.68,0.00019213,2]
[389105566,1759579840069,-353.57362495,0.00019213,2]
[389105568,1759579840078,-500.0,0.00019213,2]
[389105570,1759579840088,-500.0,0.00019213,2]
[389105572,1759579840097,-465.43402694,0.00019213,2]
[389105574,1759579840106,-447.22815829,0.00019213,2]
[389105576,1759579840116,-551.95,0.00019213,2]
[389105578,1759579840125,-500.0,0.00019213,2]
[389105579,1759579840134,-500.0,0.00019213,2]
[389105580,1759579840143,-500.0,0.00019213,2]
[389105581,1759579840153,-500.0,0.00019213,2]
[389105582,1759579840163,-500.0,0.00019213,2]
[389105583,1759579840172,-1345.65,0.00019213,2]
[389105584,1759579840182,-500.0,0.00019213,2]
[389105585,1759579840192,-500.0,0.00019213,2]
[389105587,1759579840202,-500.0,0.00019213,2]
[389105589,1759579840211,-500.0,0.00019213,2]
[389105591,1759579840221,-500.0,0.00019213,2]
[389105594,1759579840231,-500.0,0.00019213,2]
[389105596,1759579840241,-500.0,0.00019213,2]
[389105598,1759579840250,-500.0,0.00019213,2]
[389105600,1759579840260,-500.0,0.00019213,2]
[389105601,1759579840269,-500.0,0.00019213,2]
[389105604,1759579840279,-500.0,0.00019213,2]
[389105605,1759579840288,-500.0,0.00019213,2]
[389105608,1759579840298,-500.0,0.00019213,2]
[389105610,1759579840307,-500.0,0.00019213,2]
[389105611,1759579840317,-616.32691521,0.00019213,2]
[389105612,1759579840326,-500.0,0.00019213,2]
[389105614,1759579840336,-500.0,0.00019213,2]
[389105616,1759579840346,-500.0,0.00019213,2]
[389105618,1759579840356,-500.0,0.00019213,2]
[389105619,1759579840365,-500.0,0.00019213,2]
[389105621,1759579840375,-500.0,0.00019213,2]
[389105622,1759579840385,-500.0,0.00019213,2]
[389105623,1759579840394,-500.0,0.00019213,2]
[389105625,1759579840403,-1000.0,0.00019213,2]
[389105626,1759579840414,-500.0,0.00019213,2]
[389105627,1759579840423,-500.0,0.00019213,2]
[389105628,1759579840432,-500.0,0.00019213,2]
[389105629,1759579840442,-384.72011386,0.00019213,2]
[389105630,1759579840452,-500.0,0.00019213,2]
[389105631,1759579840461,-500.0,0.00019213,2]
[389105632,1759579840471,-500.0,0.00019213,2]
[389105633,1759579840480,-500.0,0.00019213,2]